[Event "*** SCC Grand Prix: Titled Tuesday Blitz"]
[Site "Chess.com"]
[Date "2020.06.23"]
[Round "10"]
[White "Ashedu66"]
[Black "Azoulas1"]
[Result "1-0"]
[WhiteElo "2159"]
[BlackElo "2017"]
[TimeControl "180+1"]
[EndTime "11:57:32 PDT"]
[Termination "Ashedu66 won by checkmate"]

1. d4 {[%clk 0:03:00.9]} 1... Nf6 {[%clk 0:02:59]} 2. Nf3 {[%clk 0:02:59.3]}
2... e6 {[%clk 0:02:59.1]} 3. c4 {[%clk 0:02:59.4]} 3... c5 {[%clk 0:02:58.1]}
4. d5 {[%clk 0:02:58.7]} 4... d6 {[%clk 0:02:57.7]} 5. Nc3 {[%clk 0:02:57.9]}
5... g6 {[%clk 0:02:56.9]} 6. e4 {[%clk 0:02:57.3]} 6... Bg7 {[%clk 0:02:55.4]}
7. h3 {[%clk 0:02:56.2]} 7... O-O {[%clk 0:02:52.9]} 8. Bd3 {[%clk 0:02:56.1]}
8... exd5 {[%clk 0:02:51.5]} 9. cxd5 {[%clk 0:02:56.2]} 9... Nbd7 {[%clk
0:02:49.4]} 10. O-O {[%clk 0:02:55.9]} 10... Re8 {[%clk 0:02:47.2]} 11. Re1
{[%clk 0:02:55.9]} 11... a6 {[%clk 0:02:45.4]} 12. a4 {[%clk 0:02:54.8]} 12...
Ne5 {[%clk 0:02:34]} 13. Nxe5 {[%clk 0:02:54.5]} 13... Rxe5 {[%clk 0:02:32.5]}
14. Bf4 {[%clk 0:02:45.3]} 14... Re8 {[%clk 0:02:30.2]} 15. Qd2 {[%clk 0:02:45]}
15... Qc7 {[%clk 0:02:21.3]} 16. Bc4 {[%clk 0:02:41.4]} 16... Nd7 {[%clk
0:02:17.1]} 17. a5 {[%clk 0:02:35.9]} 17... Ne5 {[%clk 0:02:15.5]} 18. Bf1
{[%clk 0:02:35.4]} 18... Bd7 {[%clk 0:02:06.6]} 19. Be3 {[%clk 0:02:21.5]} 19...
Bc8 {[%clk 0:01:58.1]} 20. Na4 {[%clk 0:02:10.8]} 20... Rb8 {[%clk 0:01:53.6]}
21. Nb6 {[%clk 0:02:08.4]} 21... Nd7 {[%clk 0:01:50.9]} 22. Nxc8 {[%clk
0:01:43.6]} 22... Rbxc8 {[%clk 0:01:47.4]} 23. Bf4 {[%clk 0:01:41.6]} 23... Ne5
{[%clk 0:01:44.8]} 24. Ra3 {[%clk 0:01:31.6]} 24... Qd7 {[%clk 0:01:39.5]} 25.
Rb3 {[%clk 0:01:25.1]} 25... Rc7 {[%clk 0:01:29.3]} 26. Bg3 {[%clk 0:01:18]}
26... f5 {[%clk 0:01:19.2]} 27. Rb6 {[%clk 0:00:57.6]} 27... fxe4 {[%clk
0:01:09.2]} 28. Rxe4 {[%clk 0:00:55.4]} 28... Qf5 {[%clk 0:01:04.7]} 29. f3
{[%clk 0:00:32.2]} 29... Rd7 {[%clk 0:00:47.8]} 30. Qe1 {[%clk 0:00:30.6]} 30...
Red8 {[%clk 0:00:26.8]} 31. f4 {[%clk 0:00:24.8]} 31... Nf7 {[%clk 0:00:24.6]}
32. Re8+ {[%clk 0:00:22.4]} 32... Bf8 {[%clk 0:00:23.2]} 33. Re6 {[%clk
0:00:18]} 33... Qxd5 {[%clk 0:00:20.5]} 34. b3 {[%clk 0:00:13.5]} 34... Qf5
{[%clk 0:00:19.7]} 35. Bc4 {[%clk 0:00:12.5]} 35... d5 {[%clk 0:00:19.2]} 36.
Rf6 {[%clk 0:00:11.9]} 36... Qc2 {[%clk 0:00:16.4]} 37. Bf1 {[%clk 0:00:10.3]}
37... c4 {[%clk 0:00:15.1]} 38. bxc4 {[%clk 0:00:09.9]} 38... Bc5+ {[%clk
0:00:13.6]} 39. Kh2 {[%clk 0:00:09.5]} 39... Bxb6 {[%clk 0:00:13.1]} 40. axb6
{[%clk 0:00:09.8]} 40... dxc4 {[%clk 0:00:13.1]} 41. Qe6 {[%clk 0:00:09.3]}
41... Rd6 {[%clk 0:00:11.6]} 42. Qxf7+ {[%clk 0:00:08.1]} 42... Kh8 {[%clk
0:00:10.8]} 43. Rxd6 {[%clk 0:00:08.1]} 43... Rxd6 {[%clk 0:00:08.9]} 44. Qf8#
{[%clk 0:00:08.4]} 1-0

[Event "*** SCC Grand Prix: Titled Tuesday Blitz"]
[Site "Chess.com"]
[Date "2020.06.23"]
[Round "10"]
[White "Fortitudine"]
[Black "WonderChampion"]
[Result "1-0"]
[WhiteElo "2274"]
[BlackElo "2040"]
[TimeControl "180+1"]
[EndTime "11:57:33 PDT"]
[Termination "Fortitudine won by resignation"]

1. d4 {[%clk 0:03:00.9]} 1... d5 {[%clk 0:02:58.4]} 2. Nc3 {[%clk 0:03:01]} 2...
Bf5 {[%clk 0:02:52.7]} 3. Nf3 {[%clk 0:02:58.6]} 3... Nf6 {[%clk 0:02:52.6]} 4.
Bg5 {[%clk 0:02:57.4]} 4... e6 {[%clk 0:02:51.6]} 5. e3 {[%clk 0:02:56.4]} 5...
Be7 {[%clk 0:02:47.1]} 6. Bd3 {[%clk 0:02:55.4]} 6... Bxd3 {[%clk 0:02:46.1]} 7.
Qxd3 {[%clk 0:02:56.3]} 7... Nbd7 {[%clk 0:02:46.3]} 8. O-O {[%clk 0:02:55.7]}
8... O-O {[%clk 0:02:44.9]} 9. Bxf6 {[%clk 0:02:51]} 9... Bxf6 {[%clk
0:02:38.7]} 10. e4 {[%clk 0:02:51.2]} 10... dxe4 {[%clk 0:02:35.3]} 11. Nxe4
{[%clk 0:02:52.1]} 11... Qe7 {[%clk 0:02:34.4]} 12. Rfe1 {[%clk 0:02:49.8]}
12... Rac8 {[%clk 0:02:30.9]} 13. Rad1 {[%clk 0:02:41.3]} 13... Rfd8 {[%clk
0:02:29.9]} 14. Qb5 {[%clk 0:02:24.4]} 14... Nb6 {[%clk 0:02:24.3]} 15. c3
{[%clk 0:02:06.2]} 15... c6 {[%clk 0:02:21.4]} 16. Qh5 {[%clk 0:02:06]} 16... h6
{[%clk 0:02:19.9]} 17. Nxf6+ {[%clk 0:02:05.2]} 17... Qxf6 {[%clk 0:02:20.8]}
18. Qe5 {[%clk 0:02:02.9]} 18... Qxe5 {[%clk 0:02:20.2]} 19. Nxe5 {[%clk
0:01:49]} 19... Nd7 {[%clk 0:02:17.7]} 20. f4 {[%clk 0:01:45.1]} 20... Nf6
{[%clk 0:02:09.2]} 21. Kf2 {[%clk 0:01:40.5]} 21... b6 {[%clk 0:02:02.7]} 22. g3
{[%clk 0:01:30.6]} 22... Kf8 {[%clk 0:02:00.2]} 23. Kf3 {[%clk 0:01:28.1]} 23...
Nd7 {[%clk 0:01:58.1]} 24. h3 {[%clk 0:01:25.5]} 24... Nxe5+ {[%clk 0:01:55.6]}
25. dxe5 {[%clk 0:01:25.1]} 25... Ke7 {[%clk 0:01:55.3]} 26. Ke4 {[%clk
0:01:22.8]} 26... Rd5 {[%clk 0:01:49.8]} 27. c4 {[%clk 0:01:23.1]} 27... Rdd8
{[%clk 0:01:46.4]} 28. g4 {[%clk 0:01:21.8]} 28... Rc7 {[%clk 0:01:40.9]} 29.
Rxd8 {[%clk 0:01:21]} 29... Kxd8 {[%clk 0:01:41.8]} 30. Rd1+ {[%clk 0:01:21]}
30... Rd7 {[%clk 0:01:42.3]} 31. Rxd7+ {[%clk 0:01:20.3]} 31... Kxd7 {[%clk
0:01:43.2]} 32. f5 {[%clk 0:01:11.4]} 32... Ke7 {[%clk 0:01:40.5]} 33. h4 {[%clk
0:01:04.7]} 33... g6 {[%clk 0:01:39.9]} 34. Kf4 {[%clk 0:00:54.9]} 34... a6
{[%clk 0:01:32.1]} 35. a4 {[%clk 0:00:47.4]} 35... a5 {[%clk 0:01:30.9]} 36. c5
{[%clk 0:00:22.5]} 36... bxc5 {[%clk 0:01:12.2]} 37. fxg6 {[%clk 0:00:21.8]}
37... fxg6 {[%clk 0:01:11.6]} 38. Ke4 {[%clk 0:00:21.9]} 38... Kd7 {[%clk
0:01:10.8]} 39. Kd3 {[%clk 0:00:21.1]} 39... Kc7 {[%clk 0:01:09.4]} 40. Kc4
{[%clk 0:00:20.6]} 40... Kb6 {[%clk 0:01:04.3]} 41. b3 {[%clk 0:00:20.1]} 41...
Kb7 {[%clk 0:01:03.1]} 42. Kxc5 {[%clk 0:00:19.8]} 42... Kc7 {[%clk 0:01:03]}
43. b4 {[%clk 0:00:18.8]} 43... axb4 {[%clk 0:01:01]} 44. Kxb4 {[%clk
0:00:19.4]} 44... Kb6 {[%clk 0:00:40.7]} 45. a5+ {[%clk 0:00:19.3]} 45... Kb7
{[%clk 0:00:34.6]} 46. Kc5 {[%clk 0:00:19.2]} 46... h5 {[%clk 0:00:28.6]} 47.
gxh5 {[%clk 0:00:14.8]} 47... gxh5 {[%clk 0:00:29.5]} 48. a6+ {[%clk 0:00:14.6]}
48... Kxa6 {[%clk 0:00:28.4]} 49. Kxc6 {[%clk 0:00:15.5]} 49... Ka7 {[%clk
0:00:27.9]} 50. Kd6 {[%clk 0:00:15.8]} 50... Kb7 {[%clk 0:00:28]} 51. Kxe6
{[%clk 0:00:16.4]} 51... Kc7 {[%clk 0:00:27.9]} 52. Kf7 {[%clk 0:00:17]} 1-0

[Event "*** SCC Grand Prix: Titled Tuesday Blitz"]
[Site "Chess.com"]
[Date "2020.06.23"]
[Round "10"]
[White "kuba2006"]
[Black "Isajevsky_Anton"]
[Result "1-0"]
[WhiteElo "2380"]
[BlackElo "2507"]
[TimeControl "180+1"]
[EndTime "11:57:37 PDT"]
[Termination "kuba2006 won by resignation"]

1. e4 {[%clk 0:03:00.9]} 1... c5 {[%clk 0:02:59.4]} 2. Nf3 {[%clk 0:03:00.7]}
2... d6 {[%clk 0:02:59.3]} 3. d4 {[%clk 0:03:00.7]} 3... cxd4 {[%clk 0:03:00.2]}
4. Qxd4 {[%clk 0:03:01]} 4... e5 {[%clk 0:02:59.7]} 5. Bb5+ {[%clk 0:02:54.6]}
5... Nd7 {[%clk 0:02:59.3]} 6. Qd3 {[%clk 0:02:48.4]} 6... a6 {[%clk 0:02:59.5]}
7. Bxd7+ {[%clk 0:02:47.8]} 7... Bxd7 {[%clk 0:03:00.4]} 8. c4 {[%clk
0:02:45.4]} 8... b5 {[%clk 0:02:59.1]} 9. Nc3 {[%clk 0:02:42]} 9... Qb6 {[%clk
0:02:47.4]} 10. O-O {[%clk 0:02:32.4]} 10... Qb7 {[%clk 0:02:24.6]} 11. c5
{[%clk 0:02:21.9]} 11... dxc5 {[%clk 0:02:20.6]} 12. Nxe5 {[%clk 0:02:21.6]}
12... Nf6 {[%clk 0:02:13.2]} 13. Rd1 {[%clk 0:02:19.1]} 13... Be6 {[%clk
0:02:05.6]} 14. Bg5 {[%clk 0:02:11.5]} 14... Be7 {[%clk 0:02:03.9]} 15. Nd5
{[%clk 0:01:44.9]} 15... Rd8 {[%clk 0:01:51.3]} 16. Bxf6 {[%clk 0:00:52.8]}
16... gxf6 {[%clk 0:01:48.7]} 17. Nf3 {[%clk 0:00:50.5]} 17... f5 {[%clk
0:01:23.8]} 18. Qc3 {[%clk 0:00:41.6]} 18... Rg8 {[%clk 0:01:21.8]} 19. Nxe7
{[%clk 0:00:30.2]} 19... Rxd1+ {[%clk 0:00:52]} 20. Rxd1 {[%clk 0:00:29.4]}
20... Qxe7 {[%clk 0:00:52.3]} 21. exf5 {[%clk 0:00:28.2]} 21... Bxf5 {[%clk
0:00:49.7]} 22. Re1 {[%clk 0:00:24.5]} 22... Be6 {[%clk 0:00:50]} 23. Qe5 {[%clk
0:00:24.6]} 23... Kf8 {[%clk 0:00:34.5]} 24. Qf4 {[%clk 0:00:16.4]} 24... Rg6
{[%clk 0:00:31.4]} 25. Ne5 {[%clk 0:00:12.6]} 25... Rf6 {[%clk 0:00:27.5]} 26.
Qg5 {[%clk 0:00:12.8]} 26... h6 {[%clk 0:00:19.4]} 27. Qh4 {[%clk 0:00:07.7]}
27... Kg7 {[%clk 0:00:17.6]} 28. Ng4 {[%clk 0:00:05.8]} 28... Qd8 {[%clk
0:00:13.3]} 29. Nxf6 {[%clk 0:00:05.3]} 29... Qxf6 {[%clk 0:00:13.6]} 30. Qg3+
{[%clk 0:00:05.6]} 30... Qg5 {[%clk 0:00:12.9]} 31. Qxg5+ {[%clk 0:00:05.5]}
31... hxg5 {[%clk 0:00:13.8]} 32. Re5 {[%clk 0:00:05.1]} 32... c4 {[%clk
0:00:14.2]} 33. Rxg5+ {[%clk 0:00:05.1]} 33... Kf6 {[%clk 0:00:15.1]} 34. Rg3
{[%clk 0:00:05.2]} 34... b4 {[%clk 0:00:15.4]} 35. h4 {[%clk 0:00:05.1]} 35...
Ke5 {[%clk 0:00:14.9]} 36. h5 {[%clk 0:00:05]} 36... Kd4 {[%clk 0:00:15.2]} 37.
h6 {[%clk 0:00:05.3]} 37... Bf5 {[%clk 0:00:15.8]} 38. Rf3 {[%clk 0:00:05.2]}
38... Bb1 {[%clk 0:00:15.7]} 39. Rxf7 {[%clk 0:00:04.3]} 39... c3 {[%clk
0:00:15.9]} 40. bxc3+ {[%clk 0:00:04.8]} 40... bxc3 {[%clk 0:00:16]} 41. g4
{[%clk 0:00:05.4]} 41... Bxa2 {[%clk 0:00:14.5]} 42. Rc7 {[%clk 0:00:05]} 42...
Bb1 {[%clk 0:00:14.3]} 43. f4 {[%clk 0:00:05.2]} 43... Kd3 {[%clk 0:00:13.7]}
44. h7 {[%clk 0:00:04.8]} 44... Kd2 {[%clk 0:00:14]} 45. h8=Q {[%clk 0:00:04.8]}
45... c2 {[%clk 0:00:14.3]} 46. Qd4+ {[%clk 0:00:04.9]} 1-0

[Event "*** SCC Grand Prix: Titled Tuesday Blitz"]
[Site "Chess.com"]
[Date "2020.06.23"]
[Round "10"]
[White "SergeyKarjakin"]
[Black "Harsha_Bharathakoti"]
[Result "1-0"]
[WhiteElo "2958"]
[BlackElo "2829"]
[TimeControl "180+1"]
[EndTime "11:57:38 PDT"]
[Termination "SergeyKarjakin won by resignation"]

1. e4 {[%clk 0:03:00.9]} 1... c5 {[%clk 0:02:59.1]} 2. Nf3 {[%clk 0:03:00.6]}
2... d6 {[%clk 0:02:58.1]} 3. d4 {[%clk 0:03:00.6]} 3... cxd4 {[%clk 0:02:59]}
4. Nxd4 {[%clk 0:03:01]} 4... Nf6 {[%clk 0:02:59.7]} 5. Nc3 {[%clk 0:03:01.6]}
5... a6 {[%clk 0:03:00.1]} 6. Bd3 {[%clk 0:03:02.2]} 6... g6 {[%clk 0:02:42.6]}
7. Be3 {[%clk 0:03:00.5]} 7... Bg7 {[%clk 0:02:41.3]} 8. f3 {[%clk 0:03:00.1]}
8... Nc6 {[%clk 0:02:35.4]} 9. Qd2 {[%clk 0:03:00.4]} 9... Bd7 {[%clk 0:02:01]}
10. O-O-O {[%clk 0:03:00.2]} 10... Rc8 {[%clk 0:01:58]} 11. Kb1 {[%clk
0:02:59.5]} 11... Ne5 {[%clk 0:01:51.9]} 12. g4 {[%clk 0:02:49.6]} 12... Qa5
{[%clk 0:01:33.8]} 13. h4 {[%clk 0:02:46.6]} 13... h5 {[%clk 0:01:23.7]} 14. g5
{[%clk 0:02:45.9]} 14... Nh7 {[%clk 0:01:24.1]} 15. Rhe1 {[%clk 0:02:41.7]}
15... Nxd3 {[%clk 0:01:05.4]} 16. Qxd3 {[%clk 0:02:35.9]} 16... O-O {[%clk
0:01:03.9]} 17. Nd5 {[%clk 0:02:30]} 17... Rfe8 {[%clk 0:01:03.9]} 18. f4 {[%clk
0:02:22.2]} 18... Bg4 {[%clk 0:00:58.8]} 19. Rc1 {[%clk 0:02:14.7]} 19... e6
{[%clk 0:00:51.2]} 20. Nb3 {[%clk 0:02:11.6]} 20... Qd8 {[%clk 0:00:48.5]} 21.
Bb6 {[%clk 0:02:07.8]} 21... Qd7 {[%clk 0:00:47]} 22. Ne3 {[%clk 0:02:08.3]}
22... Rc6 {[%clk 0:00:34.9]} 23. Ba5 {[%clk 0:02:04.2]} 23... Rec8 {[%clk
0:00:17.8]} 24. Nxg4 {[%clk 0:01:50]} 24... hxg4 {[%clk 0:00:18.7]} 25. Rg1
{[%clk 0:01:50.4]} 25... Rc4 {[%clk 0:00:13.6]} 26. Bd2 {[%clk 0:01:36.7]} 26...
e5 {[%clk 0:00:11.9]} 27. f5 {[%clk 0:01:27.7]} 27... gxf5 {[%clk 0:00:06.9]}
28. exf5 {[%clk 0:01:28.6]} 28... e4 {[%clk 0:00:05.8]} 29. Qd5 {[%clk
0:01:27.4]} 29... Nf8 {[%clk 0:00:05.1]} 30. f6 {[%clk 0:01:24]} 30... Bh8
{[%clk 0:00:04.3]} 31. Be3 {[%clk 0:01:19.7]} 31... Qe6 {[%clk 0:00:02.6]} 32.
Qxb7 {[%clk 0:01:09.8]} 32... d5 {[%clk 0:00:03]} 33. Nd4 {[%clk 0:01:07.8]}
33... Qe5 {[%clk 0:00:03.3]} 34. c3 {[%clk 0:01:05.7]} 34... Ne6 {[%clk
0:00:02.7]} 35. Qxa6 {[%clk 0:00:58.8]} 35... Nxd4 {[%clk 0:00:02.5]} 36. Bxd4
{[%clk 0:00:58.8]} 36... Qf5 {[%clk 0:00:02.2]} 37. Ka1 {[%clk 0:00:39.9]} 37...
Qd7 {[%clk 0:00:02.2]} 38. Rcf1 {[%clk 0:00:36.9]} 38... Ra4 {[%clk 0:00:02]}
39. Qb6 {[%clk 0:00:36]} 39... Rca8 {[%clk 0:00:02.3]} 40. a3 {[%clk 0:00:35.4]}
40... e3 {[%clk 0:00:01.6]} 41. Bxe3 {[%clk 0:00:33.2]} 41... Rxa3+ {[%clk
0:00:01.6]} 42. bxa3 {[%clk 0:00:32.3]} 42... Rxa3+ {[%clk 0:00:02.5]} 43. Kb2
{[%clk 0:00:32.5]} 43... Qa4 {[%clk 0:00:03.4]} 44. Qd8+ {[%clk 0:00:24.6]}
44... Kh7 {[%clk 0:00:03.6]} 45. Qxd5 {[%clk 0:00:24.9]} 1-0

[Event "*** SCC Grand Prix: Titled Tuesday Blitz"]
[Site "Chess.com"]
[Date "2020.06.23"]
[Round "10"]
[White "baby_leo"]
[Black "JiiHart"]
[Result "0-1"]
[WhiteElo "1962"]
[BlackElo "2151"]
[TimeControl "180+1"]
[EndTime "11:57:38 PDT"]
[Termination "JiiHart won on time"]

1. Nf3 {[%clk 0:03:00.9]} 1... g6 {[%clk 0:02:58]} 2. c4 {[%clk 0:03:00.2]} 2...
Bg7 {[%clk 0:02:58]} 3. e4 {[%clk 0:03:00.3]} 3... d6 {[%clk 0:02:57.8]} 4. Nc3
{[%clk 0:02:59.8]} 4... e5 {[%clk 0:02:56.8]} 5. d4 {[%clk 0:02:58.9]} 5... exd4
{[%clk 0:02:54.7]} 6. Nxd4 {[%clk 0:02:59.8]} 6... Nc6 {[%clk 0:02:49.4]} 7.
Nde2 {[%clk 0:02:46]} 7... Nge7 {[%clk 0:02:43.8]} 8. f3 {[%clk 0:02:41.4]} 8...
O-O {[%clk 0:02:42.7]} 9. Be3 {[%clk 0:02:41.5]} 9... Ne5 {[%clk 0:02:37.6]} 10.
b3 {[%clk 0:02:40.3]} 10... c6 {[%clk 0:02:32.8]} 11. Qd2 {[%clk 0:02:37.1]}
11... f5 {[%clk 0:02:16.8]} 12. Nd4 {[%clk 0:02:27]} 12... Qa5 {[%clk
0:01:59.2]} 13. Rc1 {[%clk 0:02:17.2]} 13... fxe4 {[%clk 0:01:54.4]} 14. Nxe4
{[%clk 0:02:08.2]} 14... Qxd2+ {[%clk 0:01:50.7]} 15. Kxd2 {[%clk 0:02:02.7]}
15... d5 {[%clk 0:01:38.4]} 16. Nc3 {[%clk 0:01:42.6]} 16... dxc4 {[%clk
0:01:36.3]} 17. bxc4 {[%clk 0:01:33.7]} 17... Nf5 {[%clk 0:01:32.1]} 18. Nxf5
{[%clk 0:01:31.4]} 18... Bxf5 {[%clk 0:01:31]} 19. Be2 {[%clk 0:01:04.4]} 19...
Rfd8+ {[%clk 0:01:27]} 20. Ke1 {[%clk 0:01:03.8]} 20... Bd3 {[%clk 0:01:25.4]}
21. Kf2 {[%clk 0:01:01]} 21... Bxe2 {[%clk 0:01:24]} 22. Kxe2 {[%clk 0:00:54.7]}
22... Nxc4 {[%clk 0:01:23.8]} 23. Bg5 {[%clk 0:00:49.9]} 23... Re8+ {[%clk
0:01:19]} 24. Ne4 {[%clk 0:00:48.5]} 24... Nd6 {[%clk 0:01:14.9]} 25. Kd3 {[%clk
0:00:25]} 25... h6 {[%clk 0:01:13.2]} 26. Nxd6 {[%clk 0:00:23.7]} 26... Re6
{[%clk 0:01:06.2]} 27. Nxb7 {[%clk 0:00:21.1]} 27... hxg5 {[%clk 0:01:05.1]} 28.
Rhe1 {[%clk 0:00:20.3]} 28... Rxe1 {[%clk 0:00:56.2]} 29. Rxe1 {[%clk
0:00:19.9]} 29... Rb8 {[%clk 0:00:56.1]} 30. Nc5 {[%clk 0:00:18.9]} 30... Rd8+
{[%clk 0:00:54.8]} 31. Kc4 {[%clk 0:00:18.3]} 31... Rd4+ {[%clk 0:00:54]} 32.
Kb3 {[%clk 0:00:18.1]} 32... Kf7 {[%clk 0:00:49.5]} 33. Ne6 {[%clk 0:00:17]}
33... Rd3+ {[%clk 0:00:38.5]} 34. Kc4 {[%clk 0:00:15.8]} 34... Rc3+ {[%clk
0:00:38.4]} 35. Kb4 {[%clk 0:00:16.2]} 35... Bf6 {[%clk 0:00:37]} 36. Nc5 {[%clk
0:00:13.7]} 36... Rc2 {[%clk 0:00:34.8]} 37. Nb3 {[%clk 0:00:13.1]} 37... Be7+
{[%clk 0:00:33.4]} 38. Nc5 {[%clk 0:00:04.3]} 38... Rb2+ {[%clk 0:00:28.1]} 39.
Kc3 {[%clk 0:00:03.8]} 39... Rxa2 {[%clk 0:00:25]} 40. Nb3 {[%clk 0:00:03.3]}
40... Rxg2 {[%clk 0:00:19.2]} 41. Rh1 {[%clk 0:00:03]} 41... Rf2 {[%clk
0:00:18.5]} 42. h4 {[%clk 0:00:02.2]} 42... Rxf3+ {[%clk 0:00:17.7]} 43. Kc4
{[%clk 0:00:01.7]} 43... gxh4 {[%clk 0:00:17.6]} 44. Rf1 {[%clk 0:00:01.3]}
44... Rxf1 {[%clk 0:00:17]} 0-1

[Event "*** SCC Grand Prix: Titled Tuesday Blitz"]
[Site "Chess.com"]
[Date "2020.06.23"]
[Round "10"]
[White "sertalzin"]
[Black "luizwas"]
[Result "1/2-1/2"]
[WhiteElo "1994"]
[BlackElo "1807"]
[TimeControl "180+1"]
[EndTime "11:57:38 PDT"]
[Termination "Game drawn by repetition"]

1. d4 {[%clk 0:03:00.9]} 1... Nf6 {[%clk 0:02:59.4]} 2. c4 {[%clk 0:03:01.1]}
2... e6 {[%clk 0:02:59.8]} 3. Nc3 {[%clk 0:03:01.1]} 3... Bb4 {[%clk 0:02:59.5]}
4. e3 {[%clk 0:03:01.3]} 4... c5 {[%clk 0:02:57.5]} 5. Ne2 {[%clk 0:03:01.1]}
5... O-O {[%clk 0:02:55.2]} 6. a3 {[%clk 0:03:01.3]} 6... Bxc3+ {[%clk
0:02:54.9]} 7. Nxc3 {[%clk 0:03:01.3]} 7... cxd4 {[%clk 0:02:55.6]} 8. exd4
{[%clk 0:03:00.6]} 8... d5 {[%clk 0:02:56.5]} 9. Bd3 {[%clk 0:02:58.6]} 9...
dxc4 {[%clk 0:02:55.2]} 10. Bxc4 {[%clk 0:02:57.8]} 10... b6 {[%clk 0:02:55.6]}
11. O-O {[%clk 0:02:56.1]} 11... Bb7 {[%clk 0:02:55.5]} 12. Be3 {[%clk
0:02:55.3]} 12... Nc6 {[%clk 0:02:55.5]} 13. Qd3 {[%clk 0:02:53.7]} 13... Ne7
{[%clk 0:02:54.3]} 14. Rad1 {[%clk 0:02:52]} 14... Rc8 {[%clk 0:02:48]} 15. Ba2
{[%clk 0:02:51.3]} 15... Ned5 {[%clk 0:02:44.3]} 16. Bg5 {[%clk 0:02:50.3]}
16... h6 {[%clk 0:02:37.7]} 17. Bxd5 {[%clk 0:02:15.9]} 17... Bxd5 {[%clk
0:02:27.6]} 18. Nxd5 {[%clk 0:02:12.2]} 18... hxg5 {[%clk 0:02:25.5]} 19. Nxf6+
{[%clk 0:02:08.7]} 19... Qxf6 {[%clk 0:02:26.4]} 20. Rd2 {[%clk 0:01:59.8]}
20... Rfd8 {[%clk 0:02:22.9]} 21. Qa6 {[%clk 0:01:58.7]} 21... Rc7 {[%clk
0:02:19.1]} 22. Rfd1 {[%clk 0:01:47.1]} 22... Rcd7 {[%clk 0:02:00]} 23. Qc4
{[%clk 0:01:44]} 23... Qf5 {[%clk 0:01:51.6]} 24. h3 {[%clk 0:01:41.3]} 24...
Qd5 {[%clk 0:01:37.9]} 25. Qc3 {[%clk 0:01:30.4]} 25... e5 {[%clk 0:01:06.5]}
26. dxe5 {[%clk 0:01:28]} 26... Qxd2 {[%clk 0:01:07.4]} 27. Rxd2 {[%clk
0:01:24]} 27... Rxd2 {[%clk 0:01:08.3]} 28. e6 {[%clk 0:01:16.9]} 28... fxe6
{[%clk 0:01:07.3]} 29. Qe5 {[%clk 0:01:16.5]} 29... Kf7 {[%clk 0:00:55.8]} 30.
Qxg5 {[%clk 0:01:13.7]} 30... R8d5 {[%clk 0:00:44.2]} 31. Qf4+ {[%clk
0:01:00.3]} 31... Ke7 {[%clk 0:00:34.1]} 32. Qc7+ {[%clk 0:00:54.9]} 32... Rd7
{[%clk 0:00:34.4]} 33. Qc3 {[%clk 0:00:54.3]} 33... Rd1+ {[%clk 0:00:33.3]} 34.
Kh2 {[%clk 0:00:52.8]} 34... Kf7 {[%clk 0:00:33.9]} 35. Qf3+ {[%clk 0:00:44.2]}
35... Ke7 {[%clk 0:00:33.2]} 36. Qg4 {[%clk 0:00:36.1]} 36... Kf7 {[%clk
0:00:31.8]} 37. h4 {[%clk 0:00:34.8]} 37... R1d2 {[%clk 0:00:27.8]} 38. Qf4+
{[%clk 0:00:29.1]} 38... Ke7 {[%clk 0:00:26.9]} 39. h5 {[%clk 0:00:28.8]} 39...
R2d5 {[%clk 0:00:20.3]} 40. Qh4+ {[%clk 0:00:26]} 40... Kf7 {[%clk 0:00:19.9]}
41. h6 {[%clk 0:00:25.5]} 41... gxh6 {[%clk 0:00:19.1]} 42. Qxh6 {[%clk
0:00:24.5]} 42... Rd2 {[%clk 0:00:18.9]} 43. Qh5+ {[%clk 0:00:21.5]} 43... Ke7
{[%clk 0:00:19]} 44. Qg5+ {[%clk 0:00:18.2]} 44... Kd6 {[%clk 0:00:18.3]} 45.
Qf4+ {[%clk 0:00:16.4]} 45... Ke7 {[%clk 0:00:18]} 46. Qg5+ {[%clk 0:00:15.4]}
46... Ke8 {[%clk 0:00:17.9]} 47. Qg6+ {[%clk 0:00:12.7]} 47... Ke7 {[%clk
0:00:17.8]} 48. Qg5+ {[%clk 0:00:11.5]} 1/2-1/2